fUST/lending_fUST_20250531
["ID","MTS","AMOUNT","RATE_DAILY","PERIOD"]
[363333101,1748680242040,-441.32,0.00017808,2]
[363333103,1748680242049,-430.0,0.00017808,2]
[363333105,1748680242059,-430.0,0.00017808,2]
[363333107,1748680242068,-1677.22,0.00017808,2]
[363333109,1748680242077,-430.0,0.00017808,2]
[363333111,1748680242086,-430.0,0.00017808,2]
[363333113,1748680242096,-430.0,0.00017808,2]
[363333115,1748680242105,-965.51,0.00017808,2]
[363333117,1748680242114,-2039.92,0.00017808,2]
[363333119,1748680242124,-1308.83,0.00017808,2]
[363333121,1748680242133,-572.39129115,0.00017808,2]
[363333123,1748680242143,-507.89,0.00017808,2]
[363333125,1748680242156,-430.0,0.00017808,2]
[363333127,1748680242170,-758.04,0.00017808,2]
[363333129,1748680242181,-430.0,0.00017808,2]
[363333132,1748680242191,-430.0,0.00017808,2]
[363333134,1748680242200,-430.0,0.00017808,2]
[363333136,1748680242210,-1656.47,0.00017808,2]
[363333138,1748680242220,-430.0,0.00017808,2]
[363333139,1748680242229,-430.0,0.00017808,2]
[363333142,1748680242239,-430.0,0.00017808,2]
[363333144,1748680242248,-430.0,0.00017808,2]
[363333146,1748680242258,-692.71,0.00017808,2]
[363333148,1748680242268,-430.0,0.00017808,2]
[363333149,1748680242279,-430.0,0.00017808,2]
[363333151,1748680242289,-430.0,0.00017808,2]
[363333153,1748680242301,-454.91,0.00017808,2]
[363333155,1748680242311,-430.0,0.00017808,2]
[363333157,1748680242321,-633.95,0.00017808,2]
[363333159,1748680242332,-430.0,0.00017808,2]
[363333161,1748680242342,-523.91526245,0.00017808,2]
[363333163,1748680242351,-430.0,0.00017808,2]
[363333165,1748680242360,-430.0,0.00017808,2]
[363333167,1748680242370,-430.0,0.00017808,2]
[363333169,1748680242380,-746.34,0.00017808,2]
[363333171,1748680242389,-430.0,0.00017808,2]
[363333173,1748680242399,-631.7,0.00017808,2]
[363333175,1748680242409,-1264.09,0.00017808,2]
[363333177,1748680242423,-1512.98,0.00017808,2]
[363333179,1748680242432,-276.90369772,0.00017808,2]
[363333181,1748680242441,-1133.51723044,0.00017818,2]
[363333183,1748680242450,-500.3439553,0.00017818,2]
[363333185,1748680242459,-1000.0,0.00017818,2]
[363333187,1748680242469,-1000.0,0.00017818,2]
[363333189,1748680242478,-500.0,0.00017818,2]
[363333191,1748680242489,-1000.0,0.00017822,2]
[363333193,1748680242499,-1000.0,0.00017822,2]
[363333195,1748680242510,-1000.0,0.00017822,2]
[363333198,1748680242520,-500.0,0.00017822,2]
[363333200,1748680242531,-500.0,0.00017822,2]
[363333202,1748680242541,-500.0,0.00017848,2]
[363333204,1748680242551,-2371.29337554,0.000179,2]
[363333206,1748680242560,-420.0,0.00017963,2]
[363333208,1748680242570,-213.0,0.00017963,2]
[363333210,1748680242579,-420.0,0.00017963,2]
[363333212,1748680242589,-1000.0,0.00018046,7]
[363333214,1748680242601,-1000.0,0.00018046,7]
[363333216,1748680242611,-1000.0,0.00018046,2]
[363333218,1748680242621,-1680.0,0.00018052,2]
[363333220,1748680242630,-1285.56,0.0001808,2]
[363333222,1748680242639,-430.0,0.0001808,2]
[363333224,1748680242649,-430.0,0.0001808,2]
[363333226,1748680242659,-562.06,0.0001808,2]
[363333228,1748680242670,-666.14,0.0001808,2]
[363333230,1748680242680,-430.0,0.0001808,2]
[363333232,1748680242689,-430.0,0.0001808,2]
[363333234,1748680242698,-430.0,0.0001808,2]
[363333236,1748680242708,-430.0,0.0001808,2]
[363333237,1748680242717,-766.51,0.0001808,2]
[363333240,1748680242728,-4392.05,0.0001808,2]
[363333242,1748680242738,-430.0,0.0001808,2]
[363333243,1748680242747,-650.56,0.0001808,2]
[363333245,1748680242756,-430.0,0.0001808,2]
[363333247,1748680242766,-430.0,0.0001808,2]
[363333249,1748680242776,-430.0,0.00018082,2]
[363333251,1748680242785,-430.0,0.00018082,2]
[363333253,1748680242795,-430.0,0.00018082,2]
[363333255,1748680242804,-470.0,0.00018082,2]
[363333257,1748680242814,-441.32,0.00018082,2]
[363333259,1748680242824,-430.0,0.00018082,2]
[363333261,1748680242833,-285.45419088,0.00018082,2]
[363333263,1748680242843,-1677.22,0.00018082,2]
[363333265,1748680242852,-430.0,0.00018082,2]
[363333267,1748680242861,-430.0,0.00018082,2]
[363333269,1748680242871,-430.0,0.00018082,2]
[363333271,1748680242880,-965.51,0.00018082,2]
[363333273,1748680242889,-2039.92,0.00018082,2]
[363333275,1748680242900,-1308.83,0.00018082,2]
[363333277,1748680242910,-507.89,0.00018082,2]
[363333279,1748680242919,-430.0,0.00018082,2]
[363333281,1748680242929,-758.04,0.00018082,2]
[363333283,1748680242937,-430.0,0.00018082,2]
[363333285,1748680242947,-430.0,0.00018082,2]
[363333287,1748680242956,-430.0,0.00018082,2]
[363333289,1748680242966,-1656.47,0.00018082,2]
[363333291,1748680242975,-430.0,0.00018082,2]
[363333293,1748680242984,-430.0,0.00018082,2]
[363333295,1748680242993,-430.0,0.00018082,2]
[363333297,1748680243003,-692.71,0.00018082,2]
[363333300,1748680243012,-430.0,0.00018082,2]
[363333302,1748680243021,-430.0,0.00018082,2]
[363333304,1748680243032,-454.91,0.00018082,2]
[363333305,1748680243041,-430.0,0.00018082,2]
[363333308,1748680243050,-633.95,0.00018082,2]
[363333310,1748680243058,-430.0,0.00018082,2]
[363333312,1748680243068,-430.0,0.00018082,2]
[363333314,1748680243078,-746.34,0.00018082,2]
[363333316,1748680243089,-430.0,0.00018082,2]
[363333318,1748680243098,-631.7,0.00018082,2]
[363333320,1748680243109,-1264.09,0.00018082,2]
[363333322,1748680243119,-1512.98,0.00018082,2]
[363333324,1748680243128,-160.0,0.00018141,2]
[363333326,1748680243137,-2371.29337549,0.00018141,2]
[363333328,1748680243146,-1000.0,0.00018164,2]
[363333330,1748680243156,-505.52707264,0.00018349,2]
[363333332,1748680243167,-1285.56,0.00018354,2]
[363333334,1748680243176,-430.0,0.00018354,2]
[363333336,1748680243186,-218.57,0.00018354,2]
[363333338,1748680243196,-562.06,0.00018354,2]
[363333340,1748680243205,-666.14,0.00018354,2]
[363333342,1748680243214,-430.0,0.00018354,2]
[363333344,1748680243224,-430.0,0.00018354,2]
[363333347,1748680243233,-430.0,0.00018354,2]
[363333350,1748680243242,-430.0,0.00018354,2]
[363333353,1748680243252,-766.51,0.00018354,2]
[363333356,1748680243264,-4392.05,0.00018354,2]
[363333359,1748680243274,-430.0,0.00018354,2]
[363333363,1748680243284,-650.56,0.00018354,2]
[363333365,1748680243294,-430.0,0.00018354,2]
[363333368,1748680243303,-430.0,0.00018354,2]
[363333371,1748680243314,-430.0,0.00018356,2]
[363333374,1748680243323,-441.32,0.00018356,2]
[363333377,1748680243332,-430.0,0.00018356,2]
[363333379,1748680243341,-1677.22,0.00018356,2]
[363333381,1748680243351,-430.0,0.00018356,2]
[363333383,1748680243362,-430.0,0.00018356,2]
[363333385,1748680243372,-430.0,0.00018356,2]
[363333387,1748680243381,-965.51,0.00018356,2]
[363333389,1748680243390,-2039.92,0.00018356,2]
[363333391,1748680243400,-1308.83,0.00018356,2]
[363333393,1748680243413,-507.89,0.00018356,2]
[363333395,1748680243422,-430.0,0.00018356,2]
[363333397,1748680243431,-758.04,0.00018356,2]
[363333399,1748680243440,-430.0,0.00018356,2]
[363333401,1748680243450,-430.0,0.00018356,2]
[363333402,1748680243459,-430.0,0.00018356,2]
[363333404,1748680243468,-430.0,0.00018356,2]
[363333406,1748680243478,-1656.47,0.00018356,2]
[363333408,1748680243488,-430.0,0.00018356,2]
[363333410,1748680243497,-430.0,0.00018356,2]
[363333412,1748680243507,-692.71,0.00018356,2]
[363333414,1748680243517,-454.91,0.00018356,2]
[363333416,1748680243527,-430.0,0.00018356,2]
[363333418,1748680243536,-633.95,0.00018356,2]
[363333420,1748680243545,-430.0,0.00018356,2]
[363333422,1748680243555,-430.0,0.00018356,2]
[363333424,1748680243565,-746.34,0.00018356,2]
[363333426,1748680243575,-430.0,0.00018356,2]
[363333428,1748680243584,-631.7,0.00018356,2]
[363333430,1748680243593,-1264.09,0.00018356,2]
[363333432,1748680243602,-1512.98,0.00018356,2]
[363333434,1748680243611,-513.67772657,0.00018366,2]
[363333436,1748680243620,-1004.64620244,0.00018366,2]
[363333438,1748680243630,-418.56086243,0.0001837,2]
[363333439,1748680243639,-1500.0,0.0001837,2]
[363333441,1748680243648,-509.60750908,0.0001837,2]
[363333443,1748680243658,-2371.29337549,0.00018383,2]
[363333445,1748680243670,-154409.56949812,0.00018399,2]
[363333447,1748680243679,-4653.35936662,0.00018433,2]
[363333449,1748680243689,-160.0,0.00018579,2]
[363333451,1748680243698,-229.3428821,0.00018585,2]
[363333453,1748680243707,-314.84782018,0.00018585,2]
[363333455,1748680243718,-160.0,0.00018585,2]
[363333457,1748680243727,-160.0,0.00018585,2]
[363333459,1748680243737,-212.77096907,0.00018585,2]
[363333461,1748680243747,-160.0,0.00018585,2]
[363333463,1748680243757,-160.0,0.00018585,2]
[363333465,1748680243767,-423.4608169,0.00018585,2]
[363333467,1748680243776,-842.5625,0.00018585,2]
[363333469,1748680243786,-12664.98044988,0.00018588,2]
[363333471,1748680243796,-267.12225678,0.00018589,2]
[363333473,1748680243806,-2371.29337549,0.00018624,2]
[363333475,1748680243816,-1285.56,0.00018628,2]
[363333478,1748680243826,-430.0,0.00018628,2]
[363333481,1748680243835,-562.06,0.00018628,2]
[363333484,1748680243846,-666.14,0.00018628,2]
[363333487,1748680243856,-430.0,0.00018628,2]
[363333489,1748680243866,-430.0,0.00018628,2]
[363333491,1748680243876,-430.0,0.00018628,2]
[363333493,1748680243886,-766.51,0.00018628,2]
[363333495,1748680243896,-4392.05,0.00018628,2]
[363333496,1748680243905,-430.0,0.00018628,2]
[363333498,1748680243920,-650.56,0.00018628,2]
[363333500,1748680243929,-430.0,0.00018628,2]
[363333502,1748680243939,-430.0,0.00018628,2]
[363333504,1748680243948,-430.0,0.0001863,2]
[363333506,1748680243957,-441.32,0.0001863,2]
[363333508,1748680243967,-430.0,0.0001863,2]
[363333510,1748680243976,-1677.22,0.0001863,2]
[363333512,1748680243985,-430.0,0.0001863,2]
[363333514,1748680243995,-430.0,0.0001863,2]
[363333516,1748680244004,-965.51,0.0001863,2]
[363333518,1748680244013,-2039.92,0.0001863,2]
[363333520,1748680244023,-1308.83,0.0001863,2]
[363333522,1748680244037,-507.89,0.0001863,2]
[363333524,1748680244047,-758.04,0.0001863,2]
[363333526,1748680244056,-430.0,0.0001863,2]
[363333528,1748680244066,-255.9063081,0.0001863,2]
[363333530,1748680244076,-430.0,0.0001863,2]
[363333532,1748680244085,-430.0,0.0001863,2]
[363333534,1748680244095,-1656.47,0.0001863,2]
[363333536,1748680244104,-430.0,0.0001863,2]
[363333549,1748680244227,-430.0,0.0001863,2]
[363333551,1748680244236,-692.71,0.0001863,2]
[363333552,1748680244245,-454.91,0.0001863,2]
[363333554,1748680244255,-430.0,0.0001863,2]
[363333556,1748680244264,-633.95,0.0001863,2]
[363333558,1748680244274,-430.0,0.0001863,2]
[363333560,1748680244283,-430.0,0.0001863,2]
[363333562,1748680244292,-746.34,0.0001863,2]
[363333564,1748680244302,-430.0,0.0001863,2]
[363333566,1748680244311,-631.7,0.0001863,2]
[363333568,1748680244320,-1264.09,0.0001863,2]
[363333570,1748680244330,-1512.98,0.0001863,2]
[363333572,1748680244339,-943.06891691,0.00018755,2]
[363333574,1748680244348,-2371.29337549,0.00018866,2]
[363333576,1748680244357,-1285.56,0.00018902,2]
[363333577,1748680244366,-430.0,0.00018902,2]
[363333579,1748680244376,-562.06,0.00018902,2]
[363333581,1748680244385,-666.14,0.00018902,2]
[363333583,1748680244395,-430.0,0.00018902,2]
[363333585,1748680244404,-430.0,0.00018902,2]
[363333587,1748680244414,-766.51,0.00018902,2]
[363333589,1748680244423,-4392.05,0.00018902,2]
[363333591,1748680244431,-430.0,0.00018902,2]
[363333593,1748680244440,-650.56,0.00018902,2]
[363333595,1748680244450,-430.0,0.00018902,2]
[363333597,1748680244459,-430.0,0.00018902,2]
[363333598,1748680244469,-430.0,0.00018904,2]
[363333600,1748680244478,-441.32,0.00018904,2]
[363333602,1748680244487,-430.0,0.00018904,2]
[363333604,1748680244496,-1677.22,0.00018904,2]
[363333606,1748680244505,-430.0,0.00018904,2]
[363333608,1748680244515,-430.0,0.00018904,2]
[363333610,1748680244524,-965.51,0.00018904,2]
[363333612,1748680244533,-2039.92,0.00018904,2]
[363333614,1748680244542,-1308.83,0.00018904,2]
[363333616,1748680244552,-507.89,0.00018904,2]
[363333618,1748680244561,-758.04,0.00018904,2]
[363333619,1748680244570,-430.0,0.00018904,2]
[363333621,1748680244580,-430.0,0.00018904,2]
[363333623,1748680244589,-430.0,0.00018904,2]
[363333625,1748680244598,-1656.47,0.00018904,2]
[363333627,1748680244607,-280.14163887,0.00018904,2]
[363333629,1748680244616,-430.0,0.00018904,2]
[363333631,1748680244625,-692.71,0.00018904,2]
[363333633,1748680244635,-454.91,0.00018904,2]
[363333635,1748680244644,-295.63124419,0.00018904,2]
[363333637,1748680244653,-633.95,0.00018904,2]
[363333639,1748680244662,-430.0,0.00018904,2]
[363333641,1748680244671,-430.0,0.00018904,2]
[363333643,1748680244681,-746.34,0.00018904,2]
[363333644,1748680244691,-430.0,0.00018904,2]
[363333646,1748680244701,-631.7,0.00018904,2]
[363333648,1748680244711,-1264.09,0.00018904,2]
[363333650,1748680244721,-1512.98,0.00018904,2]
[363333652,1748680244732,-2000.0,0.00018918,2]
[363333654,1748680244742,-2364.24390995,0.00018961,2]
[363333656,1748680244752,-2371.29337549,0.00019107,2]
[363333658,1748680244764,-6377.56472278,0.00019113,2]
[363333660,1748680244774,-1285.56,0.00019176,2]
[363333662,1748680244783,-430.0,0.00019176,2]
[363333664,1748680244792,-562.06,0.00019176,2]
[363333666,1748680244801,-666.14,0.00019176,2]
[363333668,1748680244811,-430.0,0.00019176,2]
[363333670,1748680244820,-366.8424821,0.00019176,2]
[363333672,1748680244830,-766.51,0.00019176,2]
[363333674,1748680244839,-4392.05,0.00019176,2]
[363333676,1748680244849,-650.56,0.00019176,2]
[363333677,1748680244860,-430.0,0.00019176,2]
[363333679,1748680244871,-500.0,0.00019178,2]
[363333681,1748680244881,-500.0,0.00019178,2]
[363333683,1748680244892,-500.0,0.00019178,2]
[363333685,1748680244901,-500.0,0.00019178,2]
[363333687,1748680244911,-500.0,0.00019178,2]
[363333689,1748680244920,-500.0,0.00019178,2]
[363333691,1748680244929,-500.0,0.00019178,2]
[363333693,1748680244939,-500.0,0.00019178,2]
[363333695,1748680244948,-500.0,0.00019178,2]
[363333696,1748680244957,-500.0,0.00019178,2]
[363333698,1748680244967,-500.0,0.00019178,2]
[363333700,1748680244976,-500.0,0.00019178,2]
[363333702,1748680244985,-500.0,0.00019178,2]
[363333704,1748680244994,-500.0,0.00019178,2]
[363333706,1748680245004,-500.0,0.00019178,2]
[363333708,1748680245013,-500.0,0.00019178,2]
[363333710,1748680245023,-500.0,0.00019178,2]
[363333712,1748680245035,-500.0,0.00019178,2]
[363333714,1748680245044,-500.0,0.00019178,2]
[363333715,1748680245053,-500.0,0.00019178,2]
[363333717,1748680245062,-500.0,0.00019178,2]
[363333719,1748680245071,-500.0,0.00019178,2]
[363333721,1748680245081,-500.0,0.00019178,2]
[363333723,1748680245090,-500.0,0.00019178,2]
[363333725,1748680245100,-500.0,0.00019178,2]
[363333727,1748680245110,-500.0,0.00019178,2]
[363333729,1748680245119,-500.0,0.00019178,2]
[363333731,1748680245128,-500.0,0.00019178,2]
[363333733,1748680245137,-500.0,0.00019178,2]
[363333735,1748680245146,-500.0,0.00019178,2]
[363333736,1748680245155,-500.0,0.00019178,2]
[363333738,1748680245165,-500.0,0.00019178,2]
[363333740,1748680245174,-500.0,0.00019178,2]
[363333742,1748680245183,-500.0,0.00019178,2]
[363333744,1748680245192,-500.0,0.00019178,2]
[363333746,1748680245201,-500.0,0.00019178,2]
[363333748,1748680245210,-500.0,0.00019178,2]
[363333750,1748680245220,-500.0,0.00019178,2]
[363333752,1748680245229,-500.0,0.00019178,2]
[363333753,1748680245238,-500.0,0.00019178,2]
[363333755,1748680245247,-500.0,0.00019178,2]
[363333757,1748680245257,-500.0,0.00019178,2]
[363333759,1748680245265,-500.0,0.00019178,2]
[363333760,1748680245274,-500.0,0.00019178,2]
[363333761,1748680245283,-500.0,0.00019178,2]
[363333762,1748680245292,-500.0,0.00019178,2]
[363333763,1748680245301,-500.0,0.00019178,2]
[363333764,1748680245310,-500.0,0.00019178,2]
[363333765,1748680245318,-500.0,0.00019178,2]
[363333766,1748680245327,-500.0,0.00019178,2]
[363333767,1748680245336,-500.0,0.00019178,2]
[363333768,1748680245346,-500.0,0.00019178,2]
[363333769,1748680245355,-500.0,0.00019178,2]
[363333770,1748680245364,-500.0,0.00019178,2]
[363333771,1748680245373,-500.0,0.00019178,2]
[363333772,1748680245382,-500.0,0.00019178,2]
[363333773,1748680245392,-500.0,0.00019178,2]
[363333774,1748680245401,-500.0,0.00019178,2]
[363333775,1748680245411,-500.0,0.00019178,2]
[363333776,1748680245421,-500.0,0.00019178,2]
[363333777,1748680245430,-500.0,0.00019178,2]
[363333778,1748680245439,-500.0,0.00019178,2]
[363333779,1748680245449,-500.0,0.00019178,2]
[363333780,1748680245458,-500.0,0.00019178,2]
[363333781,1748680245471,-500.0,0.00019178,2]
[363333782,1748680245480,-500.0,0.00019178,2]
[363333783,1748680245489,-500.0,0.00019178,2]
[363333784,1748680245498,-500.0,0.00019178,2]
[363333785,1748680245508,-164.45669082,0.00019178,2]
[363333786,1748680245516,-430.0,0.00019178,2]
[363333787,1748680245525,-441.32,0.00019178,2]
[363333788,1748680245534,-430.0,0.00019178,2]
[363333789,1748680245543,-1677.22,0.00019178,2]
[363333791,1748680245552,-430.0,0.00019178,2]
[363333792,1748680245562,-430.0,0.00019178,2]
[363333793,1748680245571,-460.61382357,0.00019178,2]
[363333795,1748680245580,-965.51,0.00019178,2]
[363333797,1748680245590,-2039.92,0.00019178,2]
[363333799,1748680245599,-1308.83,0.00019178,2]
[363333801,1748680245608,-507.89,0.00019178,2]
[363333803,1748680245618,-758.04,0.00019178,2]
[363333805,1748680245627,-430.0,0.00019178,2]
[363333807,1748680245637,-430.0,0.00019178,2]
[363333809,1748680245647,-430.0,0.00019178,2]
[363333811,1748680245656,-1656.47,0.00019178,2]
[363333813,1748680245667,-430.0,0.00019178,2]
[363333815,1748680245679,-692.71,0.00019178,2]
[363333817,1748680245689,-454.91,0.00019178,2]
[363333819,1748680245702,-633.95,0.00019178,2]
[363333821,1748680245713,-430.0,0.00019178,2]
[363333823,1748680245722,-746.34,0.00019178,2]
[363333825,1748680245732,-430.0,0.00019178,2]
[363333827,1748680245741,-631.7,0.00019178,2]
[363333829,1748680245750,-1264.09,0.00019178,2]
[363333831,1748680245759,-1512.98,0.00019178,2]
[363333834,1748680245778,-453.989725,0.00019178,2]
[363333836,1748680245788,-151.0,0.000192,2]
[363333838,1748680245798,-1000.0,0.0001926,2]
[363333840,1748680245807,-75421.49998211,0.00019305,2]
[363333842,1748680245817,-100000.0,0.00019329,2]
[363333844,1748680245826,-2371.29337549,0.00019348,2]
[363333846,1748680245836,-1285.56,0.0001945,2]
[363333848,1748680245846,-430.0,0.0001945,2]
[363333850,1748680245857,-562.06,0.0001945,2]
[363333852,1748680245867,-666.14,0.0001945,2]
[363333854,1748680245877,-430.0,0.0001945,2]
[363333856,1748680245887,-766.51,0.0001945,2]
[363333858,1748680245896,-4392.05,0.0001945,2]
[363333860,1748680245906,-650.56,0.0001945,2]
[363333863,1748680245916,-430.0,0.0001945,2]
[363333864,1748680245926,-430.0,0.00019452,2]
[363333866,1748680245936,-441.32,0.00019452,2]
[363333868,1748680245946,-430.0,0.00019452,2]
[363333870,1748680245955,-1677.22,0.00019452,2]
[363333872,1748680245965,-430.0,0.00019452,2]
[363333874,1748680245975,-430.0,0.00019452,2]
[363333876,1748680245984,-965.51,0.00019452,2]
[363333878,1748680245994,-2039.92,0.00019452,2]
[363333880,1748680246004,-1308.83,0.00019452,2]
[363333882,1748680246013,-507.89,0.00019452,2]
[363333884,1748680246022,-758.04,0.00019452,2]
[363333886,1748680246033,-430.0,0.00019452,2]
[363333889,1748680246045,-430.0,0.00019452,2]
[363333890,1748680246055,-1656.47,0.00019452,2]
[363333893,1748680246066,-430.0,0.00019452,2]
[363333895,1748680246075,-692.71,0.00019452,2]
[363333897,1748680246085,-454.91,0.00019452,2]
[363333899,1748680246094,-633.95,0.00019452,2]
[363333901,1748680246104,-430.0,0.00019452,2]
[363333904,1748680246113,-746.34,0.00019452,2]
[363333906,1748680246124,-565.71733014,0.00019452,2]
[363333908,1748680246134,-631.7,0.00019452,2]
[363333910,1748680246147,-1264.09,0.00019452,2]
[363333912,1748680246156,-1512.98,0.00019452,2]
[363333914,1748680246165,-2000.0,0.00019466,2]
[363333916,1748680246175,-146616.182413,0.000195,2]
[363333918,1748680246185,-500.0,0.00019508,2]
[363333920,1748680246194,-500.0,0.00019535,2]
[363333922,1748680246204,-500.0,0.00019538,2]
[363333924,1748680246213,-500.0,0.00019538,2]
[363333926,1748680246223,-347.47889072,0.00019538,2]
[363333929,1748680246232,-500.0,0.00019538,2]
[363333931,1748680246242,-500.0,0.00019538,2]
[363333934,1748680246251,-540.41710014,0.00019538,2]
[363333936,1748680246261,-500.0,0.00019538,2]
[363333939,1748680246270,-500.0,0.00019538,2]
[363333941,1748680246280,-500.0,0.00019538,2]
[363333943,1748680246289,-502.27571044,0.00019538,2]
[363333946,1748680246299,-500.0,0.00019538,2]
[363333948,1748680246309,-500.0,0.00019538,2]
[363333951,1748680246320,-600.0,0.00019538,2]
[363333953,1748680246329,-500.0,0.00019563,2]
[363333956,1748680246339,-500.0,0.00019564,2]
[363333958,1748680246350,-500.0,0.00019564,2]
[363333961,1748680246360,-502.26417517,0.00019564,2]
[363333963,1748680246369,-500.0,0.00019564,2]
[363333965,1748680246379,-500.0,0.00019564,2]
[363333967,1748680246389,-500.0,0.00019564,2]
[363333969,1748680246398,-500.0,0.00019564,2]
[363333971,1748680246407,-500.0,0.00019564,2]
[363333973,1748680246417,-500.0,0.00019564,2]
[363333975,1748680246426,-500.0,0.00019564,2]
[363333977,1748680246436,-500.0,0.00019564,2]
[363333979,1748680246446,-500.0,0.00019564,2]
[363333981,1748680246455,-500.0,0.00019564,2]
[363333983,1748680246465,-2371.29337549,0.0001959,2]
[363333985,1748680246475,-500.0,0.0001959,2]
[363333987,1748680246485,-151.0,0.000196,2]
[363333989,1748680246494,-500.0,0.00019618,2]
[363333991,1748680246503,-300.0,0.00019631,2]
[363333993,1748680246512,-586.0,0.00019631,2]
[363333994,1748680246521,-500.0,0.00019645,2]
[363333997,1748680246532,-500.0,0.00019672,2]
[363333999,1748680246542,-160.19413256,0.00019673,2]
[363334001,1748680246552,-356.2936814,0.00019699,2]
[363334003,1748680246562,-678.7986217,0.00019699,2]
[363334005,1748680246571,-500.0,0.000197,2]
[363334007,1748680246580,-267.12225678,0.00019714,2]
[363334008,1748680246590,-1285.56,0.00019724,2]
[363334010,1748680246599,-430.0,0.00019724,2]
[363334012,1748680246608,-562.06,0.00019724,2]
[363334014,1748680246618,-666.14,0.00019724,2]
[363334016,1748680246627,-430.0,0.00019724,2]
[363334018,1748680246636,-766.51,0.00019724,2]
[363334020,1748680246646,-4392.05,0.00019724,2]
[363334022,1748680246656,-650.56,0.00019724,2]
[363334024,1748680246665,-430.0,0.00019724,2]
[363334026,1748680246675,-430.0,0.00019726,2]
[363334028,1748680246684,-441.32,0.00019726,2]
[363334030,1748680246694,-430.0,0.00019726,2]
[363334032,1748680246704,-1677.22,0.00019726,2]
[363334034,1748680246714,-430.0,0.00019726,2]
[363334036,1748680246723,-430.0,0.00019726,2]
[363334038,1748680246732,-965.51,0.00019726,2]
[363334040,1748680246742,-2039.92,0.00019726,2]
[363334042,1748680246752,-1308.83,0.00019726,2]
[363334044,1748680246762,-507.89,0.00019726,2]
[363334046,1748680246772,-758.04,0.00019726,2]
[363334048,1748680246782,-430.0,0.00019726,2]
[363334064,1748680246922,-430.0,0.00019726,2]
[363334066,1748680246933,-1656.47,0.00019726,2]
[363334068,1748680246943,-430.0,0.00019726,2]
[363334070,1748680246952,-692.71,0.00019726,2]
[363334072,1748680246962,-454.91,0.00019726,2]
[363334074,1748680246971,-633.95,0.00019726,2]
[363334077,1748680246980,-430.0,0.00019726,2]
[363334080,1748680246989,-746.34,0.00019726,2]
[363334083,1748680246998,-631.7,0.00019726,2]
[363334085,1748680247007,-1264.09,0.00019726,2]
[363334087,1748680247020,-1512.98,0.00019726,2]
[363334089,1748680247033,-500.0,0.00019727,2]
[363334091,1748680247043,-269.0,0.00019755,2]
[363334093,1748680247052,-500.0,0.00019775,2]
[363334095,1748680247062,-500.0,0.00019775,2]
[363334097,1748680247072,-341.58993269,0.00019821,2]
[363334099,1748680247081,-575.30694928,0.00019821,2]
[363334101,1748680247090,-500.0,0.00019821,2]
[363334103,1748680247099,-1497.0,0.00019827,2]
[363334105,1748680247111,-2371.29337549,0.00019831,2]
[363334107,1748680247120,-768.912,0.00019919,2]